bitfinex/quotes_SOLUSD_20250305
["timestamp","ask_amount","ask_price","bid_price","bid_amount"]
[1741196925500,20.0,142.92,142.84,30.99757357]
[1741196926079,28.45657512,142.91,142.85,312.0]
[1741196926307,28.45657512,142.91,142.82,80.9]
[1741196926478,26.9974,142.91,142.82,80.9]
[1741196926797,26.9974,142.91,142.82,104.89677357]
[1741196927200,6.9983,142.89,142.82,80.9]
[1741196927576,24.4942,142.89,142.82,80.9]
[1741196927792,105.4942,142.89,142.8,13.5827]
[1741196927977,105.4942,142.89,142.8,37.57947357]
[1741196928172,87.9983,142.89,142.81,23.99677357]
[1741196929188,87.9983,142.89,142.82,7.0018]
[1741196929594,8.1193,142.87,142.81,312.0]
[1741196930107,8.1193,142.87,142.81,319.0022]
[1741196930486,8.1193,142.87,142.81,342.99897357]
[1741196931213,8.1193,142.87,142.81,312.0]
[1741196931423,15.1189,142.87,142.81,312.0]
[1741196932114,32.6173,142.87,142.81,312.0]
[1741196932684,32.6173,142.87,142.77,111.93357357]
[1741196932884,32.6173,142.87,142.78,23.99677357]
[1741196933185,32.6173,142.87,142.77,87.9368]
[1741196933490,32.6173,142.87,142.78,23.99677357]
[1741196934002,32.6173,142.87,142.77,87.9368]
[1741196934003,8.1193,142.87,142.81,23.99677357]
[1741196934206,8.1193,142.87,142.82,23.99677357]
[1741196934405,8.1193,142.87,142.81,23.99677357]
[1741196934796,15.1187,142.87,142.81,23.99677357]
[1741196934979,15.1187,142.87,142.79,104.89677357]
[1741196935184,15.1187,142.87,142.8,7.0028]
[1741196935587,32.6171,142.87,142.8,312.0]
[1741196935785,15.1187,142.87,142.8,312.0]
[1741196937311,32.6171,142.87,142.8,312.0]
[1741196938192,0.42648471,142.86,142.8,312.0]
[1741196938410,20.0,142.82,142.77,0.033]
[1741196939313,7.0023,142.81,142.77,0.033]
[1741196939684,20.0,142.78,142.77,0.033]
[1741196940412,26.482,142.78,142.77,0.033]
[1741196940584,1.5888,142.77,142.69,80.9]
[1741196940787,20.0,142.73,142.66,0.033]
[1741196941108,20.0,142.72,142.66,0.033]
[1741196941291,20.0,142.72,142.66,312.033]
[1741196941492,7.0072,142.71,142.66,312.033]
[1741196941995,82.5888,142.77,142.68,23.99677357]
[1741196942308,1.5888,142.77,142.69,1.47140143]
[1741196942491,1.5888,142.77,142.68,23.99677357]
[1741196942492,81.0,142.76,142.68,23.99677357]
[1741196942696,81.0,142.76,142.69,23.99677357]
[1741196943015,1.5888,142.77,142.72,23.99677357]
[1741196943182,6.482,142.78,142.72,104.89677357]
[1741196943387,6.482,142.78,142.73,23.99677357]
[1741196943587,6.482,142.78,142.73,31.00277357]
[1741196944299,1.6051,142.81,142.76,23.99677357]
[1741196944501,6.3731,142.82,142.77,23.99677357]
[1741196944720,82.6002,142.85,142.78,23.99677357]
[1741196945023,82.6002,142.85,142.77,80.9]
[1741196945024,89.6007,142.85,142.79,312.0]
[1741196945209,20.0,142.81,142.79,312.0]
[1741196945513,7.0018,142.82,142.76,6.54]
[1741196945808,81.0,142.83,142.76,6.54]
[1741196945809,81.0,142.83,142.76,37.54137357]
[1741196946331,81.0,142.83,142.78,23.99677357]
[1741196946614,81.0,142.83,142.77,23.99677357]
[1741196946815,81.0,142.82,142.76,7.0046]
[1741196946988,81.0,142.82,142.75,7.0052]
[1741196947189,81.0,142.82,142.72,94.4265]
[1741196947426,81.0,142.82,142.72,118.45627357]
[1741196947725,0.03,142.78,142.73,23.99677357]
[1741196948416,0.03,142.78,142.73,312.0]
[1741196948585,0.03,142.78,142.73,335.99677357]
[1741196948788,0.03,142.78,142.73,312.0]
[1741196948991,0.03,142.78,142.73,23.99677357]
[1741196949192,0.03,142.78,142.72,118.43627357]
[1741196949389,0.03,142.78,142.72,87.433]
[1741196950197,27.9131,142.77,142.72,0.033]
[1741196950803,108.9131,142.77,142.72,0.033]
[1741196951019,108.9131,142.77,142.72,7.0397]
[1741196951187,81.0,142.77,142.73,23.99677357]
[1741196951392,81.0,142.77,142.72,31.03647357]
[1741196951807,81.0,142.77,142.72,0.033]
[1741196952024,88.0044,142.77,142.73,312.0]
[1741196952208,81.0,142.77,142.72,7.0394]
[1741196953027,0.03,142.78,142.73,23.99677357]
[1741196953697,0.03,142.78,142.74,7.0057]
[1741196954299,0.03,142.78,142.76,23.99677357]
[1741196954522,0.03,142.78,142.76,104.89677357]
[1741196954701,0.03,142.78,142.76,80.9]
[1741196955197,0.03,142.78,142.76,392.9]
[1741196955909,0.03,142.78,142.77,7.0042]
[1741196956925,0.03,142.78,142.76,392.9]
[1741196957130,0.03,142.78,142.72,104.92977357]
[1741196957293,0.03,142.78,142.73,23.99677357]
[1741196957489,0.03,142.78,142.74,23.99677357]
[1741196957921,0.03,142.78,142.75,31.00197357]
[1741196958124,0.03,142.78,142.75,48.51507357]
[1741196958506,0.03,142.78,142.75,39.53756592]
[1741196959150,0.03,142.78,142.77,15.01926592]
[1741196959913,0.03,142.78,142.77,7.0042]
[1741196960223,0.03,142.78,142.77,319.0042]
[1741196960425,0.03,142.78,142.77,334.02346592]
[1741196960621,0.03,142.78,142.77,22.02346592]
[1741196960823,1.621,142.85,142.81,15.01926592]
[1741196961616,87.6348,142.88,142.83,15.01926592]
[1741196962128,87.6348,142.88,142.84,7.0008]
[1741196962323,6.6348,142.88,142.84,7.0008]
[1741196962521,1.6069,142.89,142.85,15.01926592]
[1741196962721,81.0,142.9,142.86,15.01926592]
[1741196963039,6.2976,142.92,142.87,15.01926592]
[1741196963626,6.2976,142.92,142.87,327.01926592]
[1741196964138,13.2945,142.92,142.87,327.01926592]
[1741196964340,6.2976,142.92,142.87,327.01926592]
[1741196964537,6.2976,142.92,142.85,23.99847003]
[1741196964538,13.2945,142.92,142.85,23.99847003]
[1741196964844,13.2945,142.92,142.84,224.8006]
[1741196964845,99.933972,142.91,142.82,23.99847003]
[1741196965139,82.45917512,142.9,142.82,23.99847003]
[1741196965734,18.64964886,142.89,142.82,23.99847003]
[1741196965942,82.45917512,142.9,142.82,23.99847003]
[1741196966148,6.9983,142.89,142.81,30.39847003]
[1741196966450,101.39314712,142.88,142.8,80.9]
[1741196966631,81.0,142.87,142.79,23.99847003]
[1741196966831,81.0,142.87,142.8,23.99847003]
[1741196967158,81.0,142.87,142.82,23.99847003]
[1741196967641,6.9983,142.89,142.83,23.99847003]
[1741196968246,6.9983,142.89,142.82,111.90017003]
[1741196969053,87.998,142.9,142.83,23.99847003]
[1741196969261,94.2947,142.92,142.85,23.99847003]
[1741196969419,94.2947,142.92,142.85,104.89847003]
[1741196969821,94.2947,142.92,142.85,80.9]
[1741196970048,111.787,142.92,142.85,87.9003]
[1741196970233,113.24617512,142.92,142.85,80.9]
[1741196970558,18.64964886,142.91,142.85,80.9]
[1741196971056,113.24617512,142.92,142.85,392.9]
[1741196971356,95.75387512,142.92,142.85,392.9]
[1741196971557,95.75387512,142.92,142.85,399.9003]
[1741196971857,94.2947,142.92,142.85,399.9003]
[1741196972021,94.2947,142.92,142.85,392.9]
[1741196972223,87.2976,142.92,142.85,416.89847003]
[1741196972525,94.2946,142.92,142.85,87.9001]
[1741196972725,94.2946,142.92,142.85,111.89857003]
[1741196972927,87.2976,142.92,142.85,111.89857003]
[1741196973156,87.2976,142.92,142.87,23.99847003]
[1741196973362,87.3276,142.92,142.87,23.99847003]
[1741196973528,6.3276,142.92,142.86,23.99847003]
[1741196974441,6.3276,142.92,142.87,6.9993]
[1741196975455,6.3276,142.92,142.87,318.9993]
[1741196976243,0.03,142.92,142.87,6.9993]
[1741196976443,0.03,142.92,142.87,30.99777003]
[1741196976857,0.03,142.92,142.86,6.9996]
[1741196977355,0.03,142.92,142.85,94.2001]
[1741196977553,20.0,142.88,142.79,80.9]
[1741196977753,6.5977,142.88,142.8,48.50827003]
[1741196977927,6.5977,142.88,142.84,23.99847003]
[1741196978130,87.6277,142.92,142.84,104.89847003]
[1741196978330,6.9974,142.91,142.85,7.0003]
[1741196978628,87.6277,142.92,142.85,30.99877003]
[1741196979350,87.6277,142.92,142.85,342.99877003]
[1741196979866,94.6246,142.92,142.85,342.99877003]
[1741196980044,94.6246,142.92,142.85,319.0003]
[1741196980244,94.6246,142.92,142.85,342.99877003]
[1741196980438,81.0,142.91,142.85,312.0]
[1741196980639,81.0,142.91,142.84,23.99847003]
[1741196980943,81.0,142.91,142.85,23.99847003]
[1741196982771,87.9975,142.91,142.86,6.9998]
[1741196982940,87.9975,142.91,142.85,23.99847003]
[1741196983133,87.9975,142.91,142.84,23.99847003]
[1741196983338,81.0,142.91,142.85,23.99847003]
[1741196983561,81.0,142.91,142.86,23.99847003]
[1741196983768,0.03,142.92,142.88,23.99847003]
[1741196984065,0.03,142.92,142.89,23.99847003]
[1741196984264,0.03,142.92,142.88,104.89847003]
[1741196984463,0.03,142.92,142.89,6.9983]
[1741196984833,0.03,142.92,142.89,30.99677003]
[1741196985272,0.03,142.92,142.89,111.89677003]
[1741196985452,0.03,142.92,142.91,23.99847003]
[1741196985655,0.03,142.92,142.91,104.89847003]
[1741196985841,0.03,142.92,142.91,80.9]
[1741196986040,0.03,142.92,142.91,104.89847003]
[1741196986563,0.03,142.92,142.91,95.88594588]
[1741196986880,0.03,142.92,142.91,102.88334588]
[1741196987046,0.03,142.92,142.91,414.88334588]
[1741196987374,0.03,142.92,142.91,340.1419754]
[1741196987677,0.03,142.92,142.91,28.1419754]
[1741196987840,0.03,142.92,142.91,14.62477545]
[1741196988044,0.03,142.92,142.91,21.98334588]
[1741196989087,0.03,142.92,142.91,260.47049196]
[1741196989243,0.03,142.92,142.91,259.00164102]
[1741196990145,0.0001,142.92,142.91,258.80164102]
[1741196990565,0.0001,142.93,142.91,570.80164102]
[1741196990774,0.0001,142.93,142.92,37.67270986]
[1741196990973,0.0001,142.93,142.92,45.94900986]
[1741196991347,0.0001,142.93,142.92,263.74900986]
[1741196991675,0.0001,142.93,142.92,262.28054102]
[1741196991843,1.5241,143.06,142.96,0.56864628]
[1741196992050,1.5241,143.06,143.0,14.98594588]
[1741196992371,1.5241,143.06,143.0,95.88594588]
[1741196992870,1.5241,143.06,143.01,6.9925]
[1741196993247,8.5142,143.06,143.0,87.8929]
[1741196994179,8.5142,143.06,143.01,312.0]
[1741196994351,18.67964886,143.05,143.0,80.9]
[1741196994877,18.64964886,143.03,142.95,80.9]
[1741196995274,1.45917512,143.02,142.93,21.98214588]
[1741196995477,1.45917512,143.02,142.92,80.9]
[1741196995478,6.2719,143.0,142.92,102.88264588]
[1741196996256,6.2719,143.0,142.95,14.98594588]
[1741196996454,6.2719,143.0,142.96,14.98594588]
[1741196996663,6.2719,143.0,142.96,80.9]
[1741196997054,13.2651,143.0,142.96,80.9]
[1741196997254,13.2651,143.0,142.96,392.9]
[1741196997570,81.0,142.99,142.96,312.0]
[1741196997770,81.0,142.99,142.88,32.98489993]
[1741196997771,82.6203,142.98,142.88,95.88594588]
[1741196998071,81.0,142.97,142.88,95.88594588]
[1741196998273,81.0,142.97,142.89,14.98594588]
[1741196998453,81.0,142.97,142.9,14.98594588]
[1741196998866,81.0,142.97,142.91,14.98594588]
[1741196999072,1.6203,142.98,142.91,95.88594588]
[1741197000285,6.2719,143.0,142.94,14.98594588]
[1741197000492,6.2719,143.0,142.95,14.98594588]
[1741197000782,13.2652,143.0,142.92,87.8969]
[1741197001156,6.2719,143.0,142.94,14.98594588]
[1741197001355,6.2719,143.0,142.95,14.98594588]
[1741197001569,6.2719,143.0,142.95,95.88594588]
[1741197001972,0.03,142.98,142.95,80.9]
[1741197002181,0.03,142.98,142.95,95.88594588]
[1741197002514,0.03,142.98,142.96,6.9949]
[1741197003881,0.03,142.98,142.95,87.8952]
[1741197006485,0.03,142.98,142.95,102.88114588]
[1741197006784,0.03,142.98,142.97,14.98594588]
[1741197006978,0.03,142.98,142.97,407.88594588]
[1741197007504,6.1095,143.04,142.97,463.88594588]
[1741197007659,6.1095,143.04,142.97,232.78594588]
[1741197007982,13.1009,143.04,142.97,232.78594588]
[1741197008285,13.1009,143.04,142.97,217.8]
[1741197008580,13.1009,143.04,142.97,232.78594588]
[1741197008755,13.1009,143.04,142.98,6.9939]
[1741197008956,6.1095,143.04,142.98,21.97984588]
[1741197009165,13.1006,143.04,142.97,224.7942]
[1741197009457,13.1006,143.04,142.96,94.1549]
[1741197009997,6.1095,143.04,142.97,14.98594588]
[1741197010487,6.1095,143.04,142.98,14.98594588]
[1741197010686,6.1095,143.04,143.0,312.0]
[1741197010858,6.1095,143.04,143.0,318.9927]
[1741197011265,0.03,143.05,143.0,333.97864588]
[1741197011469,0.03,143.05,143.0,351.46114588]
[1741197011690,0.03,143.05,143.0,414.87864588]
[1741197012608,0.03,143.05,143.02,14.98594588]
[1741197012895,0.03,143.05,143.03,21.97744588]
[1741197013095,0.03,143.05,143.03,102.87744588]
[1741197013672,0.03,143.05,143.03,87.8915]
[1741197013974,0.03,143.05,143.03,80.9]
[1741197015274,0.03,143.05,142.99,14.98594588]
[1741197015601,0.03,143.05,142.99,333.97934588]
[1741197015976,1.5682,143.03,142.94,80.9]
[1741197016179,81.0,143.02,142.94,80.9]
[1741197016401,81.0,143.02,142.94,102.88174588]
[1741197016706,81.0,143.02,142.94,87.8958]
[1741197016886,6.9925,143.01,142.94,87.8958]
[1741197017397,6.9925,143.01,142.94,80.9]
[1741197018079,6.9925,143.01,142.94,87.8958]
[1741197018273,81.0,143.02,142.94,102.88174588]
[1741197018491,87.9921,143.02,142.94,80.9]
[1741197018673,87.9921,143.02,142.94,87.8959]
[1741197019075,81.0,143.02,142.94,414.88184588]
[1741197019299,81.0,143.02,142.95,16.45450882]
[1741197019596,1.5682,143.03,142.97,14.98594588]
[1741197019798,0.03,143.05,142.99,14.98594588]
[1741197020173,0.03,143.05,142.98,16.45415211]
[1741197020376,0.03,143.05,142.99,14.98594588]
[1741197020577,0.03,143.05,143.0,14.98594588]
[1741197020800,20.03,143.05,143.01,21.97844588]
[1741197020983,0.03,143.05,143.03,14.98594588]
[1741197021307,0.03,143.05,143.03,95.88594588]
[1741197021510,0.03,143.05,143.04,14.98594588]
[1741197021891,0.03,143.05,143.04,97.92217885]
[1741197022094,0.03,143.05,143.04,116.57182771]
[1741197022479,0.03,143.05,143.04,408.45459216]
[1741197022695,0.03,143.05,143.04,416.83040659]
[1741197023192,0.03,143.05,143.04,423.82140659]
[1741197023775,0.03,143.05,143.04,335.93040659]
[1741197024001,0.03,143.05,143.04,312.0]
[1741197024175,0.03,143.05,143.01,111.09040659]
[1741197024379,0.03,143.05,143.01,87.16]
[1741197024594,0.03,143.05,143.01,80.9]
[1741197024793,6.5452,143.04,143.01,80.9]
[1741197026307,0.03,143.05,143.01,80.9]
[1741197027289,1.6069,143.04,142.98,80.9]
[1741197027482,1.6069,143.04,142.97,7.0274]
[1741197027679,20.0,143.03,142.97,0.033]
[1741197028605,101.0,143.03,142.97,0.033]
[1741197028817,81.0,143.03,142.97,0.033]
[1741197029106,6.992,143.02,142.97,0.033]
[1741197030210,87.9917,143.03,142.97,0.033]
[1741197030505,87.9915,143.03,142.97,312.033]
[1741197031404,87.9915,143.03,142.97,319.0271]
[1741197031576,81.0,143.03,142.97,319.0271]
[1741197031781,87.9916,143.03,142.97,319.0271]
[1741197031981,81.0,143.03,142.97,319.0271]
[1741197032208,1.6069,143.04,142.98,23.93040659]
[1741197032527,1.6069,143.04,142.99,23.93040659]
[1741197032711,0.03,143.05,142.98,24.49905287]
[1741197032894,0.03,143.05,142.98,25.96708031]
[1741197033209,0.03,143.05,143.0,24.49905287]
[1741197033411,0.03,143.05,142.99,6.9934]
[1741197034711,0.03,143.05,142.99,24.4771]
[1741197034919,0.03,143.05,142.99,49.87550283]
[1741197035112,0.03,143.05,142.99,6.9934]
[1741197035929,0.03,143.05,142.99,25.94530598]
[1741197036135,0.03,143.05,142.99,25.94513434]
[1741197036337,0.03,143.05,142.99,49.87554093]
[1741197036545,81.03,143.05,142.97,0.033]
[1741197036841,88.0207,143.05,142.97,0.033]
[1741197037405,20.0,143.02,142.97,0.033]
[1741197037829,88.0207,143.05,142.97,0.033]
[1741197038026,88.0207,143.05,142.97,23.96340659]
[1741197038230,81.03,143.05,142.97,25.43165182]
[1741197038433,88.0205,143.05,142.97,337.43165182]
[1741197038613,88.0205,143.05,142.98,6.9939]
[1741197038813,7.0205,143.05,142.98,87.8939]
[1741197039415,0.03,143.02,142.98,87.8939]
[1741197040335,0.03,143.02,142.98,80.9]
[1741197041032,0.03,143.02,142.98,87.8939]
[1741197041536,0.03,143.02,142.97,0.033]
[1741197041537,20.03,143.02,142.97,0.033]
[1741197041753,0.03,143.02,142.98,24.49905287]
[1741197042037,0.03,143.02,142.98,0.56864628]
[1741197042223,0.03,143.02,142.97,89.39578096]
[1741197042424,0.03,143.02,142.97,319.0274]
[1741197042621,1.576,143.01,142.97,0.033]
[1741197042823,6.6628,143.0,142.97,0.033]
[1741197043032,20.0,142.98,142.89,80.9]
[1741197043227,81.0,142.98,142.89,87.8982]
[1741197043640,81.0,142.98,142.9,0.56864628]
[1741197043844,87.994,142.98,142.89,130.79344545]
[1741197044016,87.994,142.98,142.89,87.8982]
[1741197044211,87.994,142.98,142.89,111.82860659]
[1741197044513,87.994,142.98,142.91,0.28432314]
[1741197044514,81.0,142.98,142.91,0.28432314]
[1741197044731,81.0,142.98,142.89,130.93578237]
[1741197044926,81.0,142.98,142.9,0.14216157]
[1741197045644,87.994,142.98,142.91,318.9974]
[1741197045846,81.0,142.98,142.91,336.4909]
[1741197046723,87.9939,142.98,142.91,336.4909]
[1741197046913,81.0,142.98,142.92,0.28432314]
[1741197047119,87.6628,143.0,142.93,23.93040659]
[1741197047425,13.656,143.0,142.92,106.29916347]
[1741197047631,13.656,143.0,142.92,87.8969]
[1741197047929,81.0,142.99,142.92,6.9969]
[1741197048122,20.0,142.96,142.91,0.28432314]
[1741197048322,20.0,142.96,142.91,7.28142314]
[1741197049018,20.0,142.96,142.91,6.9971]
[1741197050016,20.0,142.96,142.92,312.0]
[1741197050214,81.0,142.98,142.92,312.0]
[1741197050822,81.0,142.98,142.91,30.92750659]
[1741197051147,81.0,142.99,142.91,30.92750659]
[1741197051322,81.0,142.99,142.91,6.9971]
[1741197051529,81.0,142.99,142.9,87.8977]
[1741197051845,6.9939,142.98,142.9,111.82810659]
[1741197052360,6.9939,142.98,142.91,9.96808813]
[1741197052720,87.9935,142.99,142.91,24.21472973]
[1741197053417,0.03,142.98,142.91,24.21472973]
[1741197053618,0.03,142.98,142.91,23.93040659]
[1741197053854,0.03,142.98,142.94,6.9959]
[1741197054717,0.03,142.98,142.92,6.9969]
[1741197054916,0.03,142.98,142.91,6.9973]
[1741197055720,0.03,142.98,142.91,30.92770659]
[1741197056646,0.03,142.98,142.91,48.42120659]
[1741197056833,0.03,142.98,142.91,24.4908]
[1741197057246,0.03,142.98,142.92,312.0]
[1741197057445,20.0,142.96,142.92,312.0]
[1741197057852,0.03,142.98,142.9,0.033]
[1741197057853,20.0,142.94,142.9,0.033]
[1741197058345,20.0,142.94,142.9,7.0308]
[1741197058523,81.0,142.96,142.9,24.5255]
[1741197059142,81.0,142.96,142.9,7.0308]
[1741197059348,87.9952,142.96,142.9,0.033]
[1741197060341,0.03,142.98,142.92,0.56864628]
[1741197060532,0.03,142.98,142.94,23.93040659]
[1741197060741,0.03,142.98,142.97,312.0]
[1741197061315,0.03,142.98,142.95,80.9]
[1741197061519,0.03,142.98,142.95,87.8952]
[1741197062148,0.03,142.98,142.95,80.9]
[1741197063145,0.03,142.98,142.95,87.8954]
[1741197063849,0.03,142.98,142.96,0.28432314]
[1741197064050,0.03,142.98,142.97,25.68313509]
[1741197064235,0.03,142.98,142.97,24.21472973]
[1741197064437,0.03,142.98,142.97,336.21472973]
[1741197064629,0.03,142.98,142.97,312.0]
[1741197065122,0.03,142.98,142.97,336.49905287]
[1741197065451,0.03,142.98,142.97,343.49345287]
[1741197066755,0.03,142.98,142.97,424.39345287]
[1741197067454,0.03,142.98,142.97,400.46304628]
[1741197068052,0.03,142.98,142.97,424.39345287]
[1741197068954,0.03,142.98,142.97,443.04310173]
[1741197070060,0.03,143.02,143.0,0.28432314]
[1741197070222,0.03,143.02,143.01,0.28432314]
[1741197071152,0.03,143.02,143.01,0.14216157]
[1741197071359,0.03,143.02,143.01,0.28432314]
[1741197071743,0.03,143.02,143.01,6.9925]
[1741197071941,0.03,143.02,143.0,87.8929]
[1741197072168,0.03,143.02,143.0,80.9]
[1741197072460,0.03,143.02,143.0,87.8928]
[1741197072759,0.03,143.02,143.01,0.28432314]
[1741197073063,0.03,143.02,143.0,80.9]
[1741197073258,0.03,143.02,143.01,312.28432314]
[1741197073647,0.03,143.02,143.01,319.27682314]
[1741197074660,0.03,143.02,143.01,26.21079514]
[1741197076460,0.03,143.02,143.01,7.27682314]
[1741197076645,0.03,143.02,143.01,7.56114628]
[1741197077035,0.03,143.02,143.01,26.21079514]
[1741197077456,0.03,143.02,143.01,88.17682314]
[1741197077663,0.03,143.02,143.01,400.17682314]
[1741197079356,0.03,143.02,143.01,107.11079514]
[1741197079564,0.03,143.02,143.01,108.57850187]
[1741197080266,0.03,143.02,143.01,123.54919858]
[1741197081266,0.03,143.02,143.01,108.57850187]
[1741197082254,0.0001,143.02,143.01,435.54919858]
[1741197082469,0.0001,143.02,143.01,434.08149185]
[1741197082654,0.0001,143.02,143.01,419.11079514]
[1741197083168,0.0001,143.02,143.01,400.46114628]
[1741197083344,0.0001,143.02,143.01,400.03466157]
[1741197083665,0.0001,143.02,143.01,400.46114628]
[1741197084547,0.0001,143.02,143.01,434.08149185]
[1741197085450,0.0001,143.02,143.01,570.98149185]
[1741197085860,0.0001,143.02,143.01,537.36114628]
[1741197086058,0.0001,143.02,143.01,400.46114628]
[1741197086771,0.0001,143.02,143.01,415.43184299]
[1741197087162,0.0001,143.02,143.01,434.08149185]
[1741197088563,0.0001,143.02,143.01,400.17682314]
[1741197088764,0.0001,143.02,143.01,399.8925]
[1741197089075,0.0001,143.02,143.01,400.46114628]
[1741197089363,0.0001,143.02,143.01,570.98149185]
[1741197089666,0.0001,143.02,143.01,537.07682314]
[1741197090170,0.0001,143.02,143.01,556.01079514]
[1741197090347,0.0001,143.02,143.01,570.98149185]
[1741197090548,0.0001,143.02,143.01,556.01079514]
[1741197090773,0.0001,143.02,143.01,557.79421659]
[1741197091150,0.0001,143.02,143.01,570.98149185]
[1741197092173,0.0001,143.02,143.01,556.01079514]
[1741197092863,0.0001,143.02,143.01,570.98149185]
[1741197093471,0.0001,143.02,143.01,572.77687201]
[1741197093649,0.0001,143.02,143.01,570.98149185]
[1741197095649,0.0001,143.02,143.01,537.36114628]
[1741197095867,0.0001,143.02,143.01,312.0]
[1741197096265,0.0001,143.02,143.01,318.9925]
[1741197096780,0.0001,143.02,143.01,319.56114628]
[1741197096985,0.0001,143.02,143.01,353.18149185]
[1741197097967,0.0001,143.02,143.01,338.21079514]
[1741197098684,0.0001,143.02,143.01,318.9925]
[1741197098880,0.0001,143.02,143.01,399.8925]
[1741197099061,0.0001,143.02,143.01,400.17682314]
[1741197099578,0.0001,143.02,143.01,434.08149185]
[1741197101875,0.0001,143.02,143.01,577.57329185]
[1741197102074,0.0001,143.02,143.01,579.22399185]
[1741197103980,0.0001,143.02,143.01,585.46399185]
[1741197108187,8.0181,143.13,143.05,20.56864628]
[1741197108386,8.0181,143.13,143.1,0.28432314]
[1741197108577,8.0181,143.13,143.1,81.18432314]
[1741197109299,15.0048,143.13,143.1,80.9]
[1741197109477,8.0181,143.13,143.1,80.9]
[1741197110801,1.5929,143.13,143.11,0.28432314]
[1741197111379,1.5929,143.13,143.11,312.28432314]
[1741197112001,0.03,143.13,143.11,312.28432314]
[1741197112178,0.03,143.13,143.11,319.27152314]
[1741197112380,0.03,143.13,143.1,87.12]
[1741197113398,20.03,143.13,143.1,80.9]
[1741197113694,21.5874,143.12,143.05,80.9]
[1741197113893,6.0224,143.11,143.05,95.87069671]
[1741197114096,6.0224,143.11,143.05,80.9]
[1741197114398,6.9881,143.1,143.05,80.9]
[1741197114785,6.9881,143.1,143.04,6.22]
[1741197115308,24.4584,143.1,143.03,80.9]
[1741197115479,1.5332,143.06,143.0,0.033]
[1741197115683,21.5332,143.06,143.0,80.933]
[1741197116484,13.0976,143.05,143.0,80.933]
[1741197116682,13.0976,143.05,143.0,0.033]
[1741197116880,6.1071,143.05,143.0,0.033]
[1741197117085,6.1071,143.05,143.0,7.0259]
[1741197117307,6.1071,143.05,143.0,0.033]
[1741197117611,6.1071,143.05,143.0,7.0259]
[1741197118104,6.1071,143.05,143.01,0.28432314]
[1741197118298,6.1071,143.05,143.01,15.25501985]
[1741197118488,1.5332,143.06,143.04,312.0]
[1741197119673,0.03,143.07,143.04,312.0]
[1741197120686,0.03,143.07,143.01,7.27662314]
[1741197120994,0.03,143.07,143.01,41.19644204]
[1741197121201,0.03,143.07,143.03,0.28432314]
[1741197121380,0.03,143.07,143.04,0.28432314]
[1741197121581,0.03,143.07,143.02,234.2382908]
[1741197121778,0.03,143.07,143.02,217.8]
[1741197122395,0.03,143.07,143.02,224.7918]
[1741197122597,20.0,143.05,143.0,6.253]
[1741197122807,0.03,143.07,143.0,0.033]
[1741197122808,1.6249,143.04,143.0,0.033]
[1741197123010,21.6249,143.04,143.0,0.033]
[1741197123210,1.6249,143.04,143.01,14.97069671]
[1741197123602,1.6249,143.04,143.0,0.033]
[1741197123802,21.6249,143.04,143.0,0.033]
[1741197124012,21.6249,143.04,143.0,15.00369671]
[1741197124192,6.374,143.07,143.02,14.97069671]
[1741197124405,6.374,143.07,143.01,22.24751985]
[1741197124907,6.374,143.07,143.03,0.28432314]